[Event "Snabbschacks-SM 2025"]
[Site "Norrköping, Sweden"]
[Date "2025.09.28"]
[Round "6.10"]
[White "Dolata, Henryk"]
[Black "Ostling, Hakan"]
[Result "0-1"]
[TimeControl "25 min + 10 sec/move"]
[WhiteElo "1943"]
[BlackElo "2117"]

1. e4 {[%clk 00:25:17]} {[%emt 00:00:02]} g6 {[%clk 00:25:18]} {[%emt
00:00:02]} 2. d4 {[%clk 00:25:24]} {[%emt 00:00:03]} Bg7 {[%clk 00:25:23]}
{[%emt 00:00:05]} 3. Nc3 {[%clk 00:25:29]} {[%emt 00:00:05]} d6 {[%clk
00:25:31]} {[%emt 00:00:02]} 4. Be2 {[%clk 00:25:12]} {[%emt 00:00:27]} Nf6
{[%clk 00:23:59]} {[%emt 00:01:42]} 5. Be3 {[%clk 00:23:34]} {[%emt 00:01:48]}
a6 {[%clk 00:23:59]} {[%emt 00:00:11]} 6. a4 {[%clk 00:23:33]} {[%emt
00:00:11]} b6 {[%clk 00:24:05]} {[%emt 00:00:03]} 7. f4 {[%clk 00:22:07]}
{[%emt 00:01:36]} e6 {[%clk 00:22:06]} {[%emt 00:02:10]} 8. Bf3 {[%clk
00:21:37]} {[%emt 00:00:39]} Bb7 {[%clk 00:22:11]} {[%emt 00:00:05]} 9. Nge2
{[%clk 00:18:42]} {[%emt 00:03:04]} Nbd7 {[%clk 00:20:45]} {[%emt 00:01:37]} 10.
O-O {[%clk 00:18:32]} {[%emt 00:00:19]} e5 {[%clk 00:16:10]} {[%emt 00:04:46]}
11. fxe5 {[%clk 00:12:37]} {[%emt 00:06:06]} dxe5 {[%clk 00:16:18]} {[%emt
00:00:02]} 12. d5 {[%clk 00:12:45]} {[%emt 00:00:01]} O-O {[%clk 00:14:59]}
{[%emt 00:01:29]} 13. Qd2 {[%clk 00:12:46]} {[%emt 00:00:10]} Ne8 {[%clk
00:13:25]} {[%emt 00:01:43]} 14. g3 {[%clk 00:10:23]} {[%emt 00:02:34]} Nd6
{[%clk 00:13:15]} {[%emt 00:00:20]} 15. Rad1 {[%clk 00:09:16]} {[%emt
00:01:17]} Nc4 {[%clk 00:12:32]} {[%emt 00:00:53]} 16. Qc1 {[%clk 00:09:14]}
{[%emt 00:00:12]} Nxe3 {[%clk 00:12:38]} {[%emt 00:00:03]} 17. Qxe3 {[%clk
00:09:22]} {[%emt 00:00:02]} Qe7 {[%clk 00:12:37]} {[%emt 00:00:11]} 18. Kh1
{[%clk 00:09:05]} {[%emt 00:00:27]} Qc5 {[%clk 00:11:36]} {[%emt 00:01:11]} 19.
Qxc5 {[%clk 00:07:36]} {[%emt 00:01:39]} Nxc5 {[%clk 00:11:43]} {[%emt
00:00:03]} 20. d6 {[%clk 00:07:44]} {[%emt 00:00:02]} c6 {[%clk 00:11:23]}
{[%emt 00:00:30]} 21. b4 {[%clk 00:06:55]} {[%emt 00:01:00]} Ne6 {[%clk
00:08:08]} {[%emt 00:03:24]} 22. Bg4 {[%clk 00:04:03]} {[%emt 00:03:02]} Nd4
{[%clk 00:08:06]} {[%emt 00:00:12]} 23. Nxd4 {[%clk 00:02:04]} {[%emt
00:02:08]} exd4 {[%clk 00:08:14]} {[%emt 00:00:04]} 24. Ne2 {[%clk 00:02:13]}
c5 {[%clk 00:08:19]} {[%emt 00:00:06]} 25. Bf3 {[%clk 00:02:22]} Rad8 {[%clk
00:07:33]} {[%emt 00:00:56]} 26. bxc5 {[%clk 00:02:08]} {[%emt 00:00:24]} bxc5
{[%clk 00:07:42]} {[%emt 00:00:01]} 27. c3 {[%clk 00:01:40]} {[%emt 00:00:38]}
Rxd6 {[%clk 00:07:15]} {[%emt 00:00:37]} 28. cxd4 {[%clk 00:01:45]} {[%emt
00:00:05]} cxd4 {[%clk 00:07:24]} 29. Nf4 {[%clk 00:01:16]} {[%emt 00:00:38]}
Re8 {[%clk 00:06:47]} {[%emt 00:00:47]} 30. Rfe1 {[%clk 00:01:06]} {[%emt
00:00:21]} f5 {[%clk 00:06:39]} {[%emt 00:00:18]} 31. Kg2 {[%clk 00:00:30]}
{[%emt 00:00:45]} fxe4 {[%clk 00:06:44]} {[%emt 00:00:05]} 32. Bg4 {[%clk
00:00:39]} {[%emt 00:00:02]} h5 {[%clk 00:05:01]} {[%emt 00:01:52]} 33. Be2
{[%clk 00:00:27]} {[%emt 00:00:23]} Rc8 {[%clk 00:05:01]} {[%emt 00:00:10]} 34.
Kh3 {[%clk 00:00:26]} {[%emt 00:00:11]} Rc2 {[%clk 00:04:44]} {[%emt 00:00:26]}
35. g4 {[%clk 00:00:27]} {[%emt 00:00:09]} d3 {[%clk 00:04:44]} {[%emt
00:00:11]} 36. Bf1 {[%clk 00:00:32]} {[%emt 00:00:04]} Bc8 {[%clk 00:04:13]}
{[%emt 00:00:41]} 37. Kg3 {[%clk 00:00:33]} {[%emt 00:00:09]} Bxg4 {[%clk
00:04:15]} {[%emt 00:00:09]} 38. Rb1 {[%clk 00:00:40]} {[%emt 00:00:04]} g5
{[%clk 00:04:10]} {[%emt 00:00:15]} 39. Ng2 {[%clk 00:00:33]} {[%emt 00:00:16]}
Be5+ {[%emt 00:00:04]} 0-1

[Event "Snabbschacks-SM 2025"]
[Site "Norrköping, Sweden"]
[Date "2025.09.28"]
[Round "8.6"]
[White "Rogoz, Vladyslav"]
[Black "Lindh, Fredrik"]
[Result "0-1"]
[TimeControl "25 min + 10 sec/move"]
[BlackTitle "FM"]
[WhiteElo "2108"]
[BlackElo "2249"]

1. d4 {[%clk 00:25:18]} {[%emt 00:00:01]} d5 {[%clk 00:25:18]} {[%emt
00:00:02]} 2. c4 {[%clk 00:25:27]} {[%emt 00:00:02]} c6 {[%clk 00:25:27]}
{[%emt 00:00:02]} 3. Nf3 {[%clk 00:25:32]} {[%emt 00:00:04]} Nf6 {[%clk
00:25:35]} {[%emt 00:00:01]} 4. g3 {[%clk 00:25:40]} {[%emt 00:00:02]} Bf5
{[%clk 00:25:43]} {[%emt 00:00:01]} 5. Bg2 {[%clk 00:25:47]} {[%emt 00:00:03]}
e6 {[%clk 00:25:51]} {[%emt 00:00:03]} 6. O-O {[%clk 00:25:49]} {[%emt
00:00:09]} h6 {[%clk 00:25:26]} {[%emt 00:00:35]} 7. Qb3 {[%clk 00:25:26]}
{[%emt 00:00:33]} Qb6 {[%clk 00:25:34]} {[%emt 00:00:02]} 8. c5 {[%clk
00:25:08]} {[%emt 00:00:28]} Qxb3 {[%clk 00:25:24]} {[%emt 00:00:19]} 9. axb3
{[%clk 00:25:17]} {[%emt 00:00:02]} Bxb1 {[%clk 00:24:16]} {[%emt 00:01:18]} 10.
Rxb1 {[%clk 00:25:23]} {[%emt 00:00:05]} Nbd7 {[%clk 00:24:24]} {[%emt
00:00:01]} 11. b4 {[%clk 00:25:29]} {[%emt 00:00:04]} Ne4 {[%clk 00:21:52]}
{[%emt 00:02:42]} 12. Ra1 {[%clk 00:25:13]} {[%emt 00:00:26]} g5 {[%clk
00:21:07]} {[%emt 00:00:55]} 13. Ne5 {[%clk 00:24:02]} {[%emt 00:01:21]} Bg7
{[%clk 00:20:50]} {[%emt 00:00:26]} 14. f3 {[%clk 00:24:01]} {[%emt 00:00:11]}
Nef6 {[%clk 00:20:45]} {[%emt 00:00:16]} 15. Nd3 {[%clk 00:23:36]} {[%emt
00:00:35]} a6 {[%clk 00:20:10]} {[%emt 00:00:46]} 16. e4 dxe4 {[%clk 00:15:40]}
17. fxe4 {[%clk 00:23:38]} {[%emt 00:00:02]} Rd8 {[%clk 00:15:48]} 18. h3
{[%clk 00:23:28]} Nh5 {[%clk 00:15:21]} {[%emt 00:00:57]} 19. d5 {[%clk
00:21:35]} {[%emt 00:02:04]} Nxg3 {[%clk 00:14:47]} {[%emt 00:00:44]} 20. Re1
{[%clk 00:21:15]} {[%emt 00:00:30]} O-O {[%clk 00:11:00]} {[%emt 00:03:57]} 21.
d6 {[%clk 00:20:36]} {[%emt 00:00:49]} Ne5 {[%clk 00:09:54]} {[%emt 00:01:17]}
22. Nxe5 {[%clk 00:20:10]} {[%emt 00:00:36]} Bxe5 {[%clk 00:10:02]} {[%emt
00:00:02]} 23. Bf3 {[%clk 00:19:39]} {[%emt 00:00:40]} Kg7 {[%clk 00:09:11]}
{[%emt 00:01:01]} 24. Ra3 {[%clk 00:19:02]} {[%emt 00:00:47]} Kg6 {[%clk
00:08:59]} {[%emt 00:00:22]} 25. Kg2 {[%clk 00:18:14]} {[%emt 00:00:58]} Nh5
{[%clk 00:07:57]} {[%emt 00:01:12]} 26. Bxh5+ {[%clk 00:17:07]} {[%emt
00:01:17]} Kxh5 {[%clk 00:08:05]} {[%emt 00:00:02]} 27. Rf3 {[%clk 00:17:10]}
{[%emt 00:00:06]} Kg6 {[%clk 00:08:06]} {[%emt 00:00:10]} 28. Re2 {[%clk
00:16:28]} {[%emt 00:00:53]} Ra8 {[%clk 00:07:36]} {[%emt 00:00:40]} 29. Ra3
{[%clk 00:16:03]} {[%emt 00:00:34]} Rfb8 {[%clk 00:06:30]} {[%emt 00:01:16]} 30.
Be3 {[%clk 00:15:22]} {[%emt 00:00:50]} f6 {[%clk 00:06:39]} {[%emt 00:00:02]}
31. Rd2 {[%clk 00:15:18]} {[%emt 00:00:15]} Kf7 {[%clk 00:06:29]} {[%emt
00:00:19]} 32. Bd4 {[%clk 00:15:24]} {[%emt 00:00:04]} Bf4 {[%clk 00:06:24]}
{[%emt 00:00:16]} 33. Rf2 {[%clk 00:15:15]} {[%emt 00:00:19]} e5 {[%clk
00:06:20]} {[%emt 00:00:13]} 34. Bc3 {[%clk 00:14:56]} {[%emt 00:00:30]} Ke6
{[%clk 00:06:12]} {[%emt 00:00:18]} 35. Kf3 {[%clk 00:14:56]} {[%emt 00:00:10]}
h5 {[%clk 00:06:01]} {[%emt 00:00:20]} 36. Bd2 {[%clk 00:14:56]} {[%emt
00:00:10]} b6 {[%clk 00:05:36]} {[%emt 00:00:35]} 37. Bxf4 {[%clk 00:15:03]}
{[%emt 00:00:04]} exf4 {[%clk 00:05:44]} {[%emt 00:00:01]} 38. Rc2 {[%clk
00:14:38]} {[%emt 00:00:34]} bxc5 {[%clk 00:05:20]} {[%emt 00:00:34]} 39. bxc5
{[%clk 00:14:47]} {[%emt 00:00:01]} a5 {[%clk 00:05:20]} {[%emt 00:00:10]} 40.
b3 {[%clk 00:14:47]} {[%emt 00:00:10]} Rb4 {[%clk 00:05:05]} {[%emt 00:00:25]}
41. Rc4 {[%clk 00:14:51]} {[%emt 00:00:06]} Rxc4 {[%clk 00:05:01]} {[%emt
00:00:15]} 42. bxc4 {[%clk 00:14:59]} {[%emt 00:00:02]} a4 {[%clk 00:05:10]}
{[%emt 00:00:01]} 43. Ke2 {[%clk 00:13:35]} {[%emt 00:01:34]} Ra5 {[%clk
00:04:42]} {[%emt 00:00:38]} 44. Kd3 {[%clk 00:13:33]} {[%emt 00:00:11]} Rxc5
{[%clk 00:04:43]} {[%emt 00:00:09]} 45. d7 {[%clk 00:13:26]} {[%emt 00:00:18]}
Kxd7 {[%clk 00:04:45]} {[%emt 00:00:08]} 46. Rxa4 {[%clk 00:13:35]} g4 {[%clk
00:04:15]} {[%emt 00:00:40]} 47. h4 {[%clk 00:13:11]} {[%emt 00:00:35]} g3
{[%clk 00:03:45]} {[%emt 00:00:39]} 48. Ke2 {[%clk 00:13:11]} {[%emt 00:00:10]}
f5 {[%clk 00:03:45]} {[%emt 00:00:10]} 49. exf5 {[%clk 00:12:45]} {[%emt
00:00:36]} Rxf5 {[%clk 00:03:51]} {[%emt 00:00:03]} 50. Kf3 {[%clk 00:12:53]}
{[%emt 00:00:02]} Kd6 {[%clk 00:03:24]} {[%emt 00:00:38]} 51. Ra8 {[%clk
00:12:31]} {[%emt 00:00:32]} Rf7 {[%clk 00:02:28]} {[%emt 00:01:04]} 52. Rg8
{[%clk 00:11:48]} {[%emt 00:00:54]} Kc5 {[%clk 00:01:26]} {[%emt 00:01:13]} 53.
Rg6 {[%clk 00:11:50]} {[%emt 00:00:07]} Rf5 {[%clk 00:01:05]} {[%emt 00:00:31]}
54. Rh6 {[%clk 00:11:47]} {[%emt 00:00:13]} Kxc4 {[%clk 00:00:56]} {[%emt
00:00:20]} 55. Rxc6+ {[%clk 00:11:55]} {[%emt 00:00:02]} Kd4 {[%clk 00:00:30]}
{[%emt 00:00:36]} 56. Rd6+ {[%clk 00:11:52]} {[%emt 00:00:14]} Ke5 {[%clk
00:00:35]} {[%emt 00:00:06]} 57. Rg6 {[%clk 00:11:59]} {[%emt 00:00:02]} Kd5
{[%clk 00:00:39]} {[%emt 00:00:05]} 58. Rg8 {[%clk 00:12:04]} {[%emt 00:00:06]}
Ke6 {[%clk 00:00:40]} {[%emt 00:00:09]} 59. Ra8 {[%clk 00:11:43]} {[%emt
00:00:30]} Kf6 {[%clk 00:00:45]} {[%emt 00:00:05]} 60. Ra6+ {[%clk 00:11:51]}
{[%emt 00:00:03]} Kg7 {[%clk 00:00:52]} {[%emt 00:00:02]} 61. Ra7+ {[%clk
00:11:59]} {[%emt 00:00:03]} Kg6 {[%clk 00:00:56]} {[%emt 00:00:05]} 62. Ra6+
{[%clk 00:12:08]} {[%emt 00:00:02]} Rf6 {[%clk 00:01:04]} {[%emt 00:00:02]} 63.
Ra5 {[%clk 00:12:17]} {[%emt 00:00:01]} Kh6 {[%clk 00:01:11]} {[%emt 00:00:02]}
64. Rg5 {[%clk 00:12:16]} {[%emt 00:00:11]} Rg6 {[%clk 00:01:11]} {[%emt
00:00:10]} 65. Kxf4 {[%clk 00:12:24]} {[%emt 00:00:02]} g2 {[%emt 00:01:27]}
0-1

[ePGN "0.1;DGT LiveChess/2.2.7"]

[Event "Snabbschacks-SM 2025"]
[Site "Norrköping, Sweden"]
[Date "2025.09.28"]
[Round "7.1"]
[White "Lilliehook, Victor"]
[Black "Muntean, Victor"]
[Result "0-1"]
[TimeControl "25 min + 10 sec/move"]
[WhiteElo "2136"]
[BlackElo "2151"]

1. e4 {[%clk 00:25:19]} {[%emt 00:10:06]} e5 {[%clk 00:24:40]} {[%emt
00:00:34]} 2. Nf3 {[%clk 00:25:23]} {[%emt 00:00:13]} Nc6 {[%clk 00:24:48]}
{[%emt 00:00:02]} 3. d4 {[%clk 00:25:12]} {[%emt 00:00:20]} exd4 {[%clk
00:24:56]} {[%emt 00:00:02]} 4. Nxd4 {[%clk 00:25:14]} {[%emt 00:00:08]} Nf6
{[%clk 00:25:04]} {[%emt 00:00:03]} 5. Nxc6 {[%clk 00:25:12]} {[%emt 00:00:11]}
bxc6 {[%clk 00:25:08]} {[%emt 00:00:07]} 6. e5 {[%clk 00:25:20]} {[%emt
00:00:03]} Qe7 {[%clk 00:25:15]} {[%emt 00:00:02]} 7. Qe2 {[%clk 00:25:28]}
{[%emt 00:00:02]} Nd5 {[%clk 00:25:22]} {[%emt 00:00:03]} 8. c4 {[%clk
00:25:37]} Ba6 {[%clk 00:25:26]} {[%emt 00:00:06]} 9. Nd2 {[%clk 00:24:39]}
{[%emt 00:01:07]} Nf4 {[%clk 00:24:38]} {[%emt 00:00:59]} 10. Qe4 {[%clk
00:22:52]} {[%emt 00:01:57]} Ng6 {[%clk 00:23:50]} {[%emt 00:00:59]} 11. f4
{[%clk 00:21:15]} {[%emt 00:01:46]} f6 {[%clk 00:20:57]} {[%emt 00:03:04]} 12.
exf6 {[%clk 00:14:24]} {[%emt 00:07:00]} gxf6 {[%clk 00:20:42]} {[%emt
00:00:25]} 13. Qxe7+ {[%clk 00:12:26]} {[%emt 00:02:08]} Bxe7 {[%clk 00:20:47]}
{[%emt 00:00:05]} 14. Nf3 {[%clk 00:12:15]} {[%emt 00:00:21]} Bb4+ {[%clk
00:20:19]} {[%emt 00:00:38]} 15. Kd1 {[%clk 00:11:17]} {[%emt 00:01:08]} d5
{[%clk 00:19:19]} {[%emt 00:01:10]} 16. Nd4 {[%clk 00:07:30]} {[%emt 00:03:56]}
Bb7 {[%clk 00:18:26]} {[%emt 00:01:04]} 17. cxd5 {[%clk 00:06:29]} {[%emt
00:01:11]} O-O-O {[%clk 00:16:43]} {[%emt 00:01:53]} 18. Kc2 {[%clk 00:06:06]}
{[%emt 00:00:33]} cxd5 {[%clk 00:16:24]} {[%emt 00:00:29]} 19. g3 {[%clk
00:05:25]} {[%emt 00:00:51]} c5 {[%clk 00:15:54]} {[%emt 00:00:41]} 20. Ne6
{[%clk 00:03:46]} {[%emt 00:01:49]} Rd6 {[%clk 00:14:49]} {[%emt 00:01:14]} 21.
a3 {[%clk 00:02:41]} {[%emt 00:01:16]} d4 {[%clk 00:13:52]} {[%emt 00:01:07]}
22. axb4 {[%clk 00:00:59]} {[%emt 00:01:52]} Bxh1 {[%clk 00:13:31]} {[%emt
00:00:31]} 23. Nxc5 {[%clk 00:01:04]} {[%emt 00:00:04]} Kb8 {[%clk 00:12:55]}
{[%emt 00:00:46]} 24. b5 {[%clk 00:00:20]} {[%emt 00:00:55]} Rc8 {[%clk
00:12:21]} {[%emt 00:00:43]} 25. b4 {[%clk 00:00:27]} {[%emt 00:00:04]} Ne7
{[%clk 00:12:05]} {[%emt 00:00:26]} 26. Bd2 {[%clk 00:00:13]} {[%emt 00:00:25]}
f5 {[%clk 00:11:34]} {[%emt 00:00:41]} 27. Kb2 {[%clk 00:00:14]} {[%emt
00:00:09]} Nd5 {[%clk 00:11:01]} {[%emt 00:00:42]} 28. Bh3 {[%clk 00:00:13]}
{[%emt 00:00:11]} Be4 {[%clk 00:10:52]} {[%emt 00:00:20]} 29. Nxe4 {[%clk
00:00:21]} {[%emt 00:00:02]} fxe4 {[%clk 00:11:00]} {[%emt 00:00:01]} 30. Bxc8
{[%clk 00:00:29]} {[%emt 00:00:02]} Kxc8 {[%clk 00:11:08]} {[%emt 00:00:02]} 31.
Ra6 {[%clk 00:00:11]} {[%emt 00:00:28]} Rxa6 {[%clk 00:10:45]} {[%emt
00:00:33]} 32. bxa6 {[%clk 00:00:20]} e3 {[%clk 00:10:54]} 33. Be1 {[%clk
00:00:14]} {[%emt 00:00:17]} d3 {[%clk 00:10:56]} {[%emt 00:00:07]} 34. f5
{[%clk 00:00:12]} {[%emt 00:00:13]} d2 {[%clk 00:10:33]} {[%emt 00:00:32]} 35.
Bxd2 {[%clk 00:00:20]} {[%emt 00:00:02]} exd2 {[%clk 00:10:42]} {[%emt
00:00:02]} 36. Kc2 {[%clk 00:00:28]} Nxb4+ {[%clk 00:10:45]} {[%emt 00:00:07]}
37. Kxd2 {[%clk 00:00:37]} Nxa6 {[%clk 00:10:54]} {[%emt 00:00:01]} 38. g4
{[%clk 00:00:32]} {[%emt 00:00:15]} Nc5 {[%clk 00:10:45]} {[%emt 00:00:19]} 39.
h4 {[%clk 00:00:21]} {[%emt 00:00:21]} Kd7 {[%clk 00:10:46]} {[%emt 00:00:09]}
40. g5 {[%clk 00:00:14]} {[%emt 00:00:17]} Kd6 {[%clk 00:10:50]} {[%emt
00:00:06]} 41. g6 {[%clk 00:00:13]} {[%emt 00:00:12]} h6 {[%clk 00:10:29]}
{[%emt 00:00:30]} 42. Ke3 {[%clk 00:00:12]} {[%emt 00:00:11]} Ke7 {[%clk
00:10:18]} {[%emt 00:00:21]} 43. Kd4 {[%clk 00:00:11]} {[%emt 00:00:12]} Nd7
{[%clk 00:09:52]} {[%emt 00:00:36]} 44. g7 {[%clk 00:00:11]} {[%emt 00:00:09]}
Kf7 {[%clk 00:09:50]} {[%emt 00:00:11]} 45. Kd5 {[%clk 00:00:16]} {[%emt
00:00:06]} Kxg7 {[%clk 00:09:50]} {[%emt 00:00:10]} 46. Ke6 {[%clk 00:00:19]}
{[%emt 00:00:07]} Nf6 {[%clk 00:09:58]} {[%emt 00:00:02]} 47. Kd6 {[%clk
00:00:24]} {[%emt 00:00:05]} a5 {[%clk 00:10:04]} {[%emt 00:00:04]} 48. Kc5
{[%clk 00:00:33]} {[%emt 00:00:01]} Ng4 {[%clk 00:10:10]} {[%emt 00:00:03]} 49.
Kb5 {[%clk 00:00:40]} {[%emt 00:00:03]} Kf6 {[%clk 00:10:18]} {[%emt 00:00:02]}
50. Kxa5 {[%clk 00:00:49]} {[%emt 00:00:01]} Kxf5 {[%clk 00:10:25]} {[%emt
00:00:03]} 51. Kb4 {[%clk 00:00:59]} Nf6 {[%clk 00:10:28]} {[%emt 00:00:08]} 52.
Kc3 {[%clk 00:01:05]} {[%emt 00:00:04]} Kg4 {[%clk 00:10:36]} 53. Kd2 {[%clk
00:01:14]} Kxh4 {[%clk 00:10:39]} {[%emt 00:00:08]} 54. Ke2 {[%clk 00:01:19]}
{[%emt 00:00:04]} Kg3 {[%clk 00:10:47]} {[%emt 00:00:02]} 55. Kf1 {[%clk
00:01:29]} h5 {[%clk 00:10:54]} {[%emt 00:00:03]} 56. Kg1 {[%clk 00:01:38]}
{[%emt 00:00:01]} h4 {[%clk 00:11:04]} 57. Kh1 {[%clk 00:01:47]} h3 {[%clk
00:11:12]} 58. Kg1 {[%clk 00:01:56]} Ng4 {[%clk 00:11:19]} {[%emt 00:00:03]} 59.
Kh1 {[%clk 00:02:03]} {[%emt 00:00:04]} Nf2+ {[%clk 00:11:28]} {[%emt
00:00:02]} 0-1

[Event "Snabbschacks-SM 2025"]
[Site "Norrköping, Sweden"]
[Date "2025.09.28"]
[Round "7.2"]
[White "Carlsson, Ludvig"]
[Black "Smith, Axel"]
[Result "1-0"]
[TimeControl "25 min + 10 sec/move"]
[WhiteTitle "IM"]
[BlackTitle "GM"]
[WhiteElo "2389"]
[BlackElo "2431"]

1. e4 {[%clk 00:23:58]} {[%emt 00:01:20]} c5 {[%clk 00:25:19]} {[%emt
00:00:02]} 2. Nf3 {[%clk 00:24:05]} {[%emt 00:00:03]} e6 {[%clk 00:25:28]}
{[%emt 00:00:02]} 3. Be2 {[%clk 00:23:37]} {[%emt 00:00:37]} Nc6 {[%clk
00:25:05]} {[%emt 00:00:34]} 4. O-O {[%clk 00:23:24]} {[%emt 00:00:22]} Nf6
{[%clk 00:24:48]} {[%emt 00:00:28]} 5. Nc3 {[%clk 00:23:31]} {[%emt 00:00:02]}
d5 {[%clk 00:22:59]} {[%emt 00:01:59]} 6. exd5 {[%clk 00:23:38]} {[%emt
00:00:03]} Nxd5 {[%clk 00:21:22]} {[%emt 00:01:48]} 7. d4 {[%clk 00:23:46]}
{[%emt 00:00:02]} cxd4 {[%clk 00:19:40]} {[%emt 00:01:52]} 8. Nxd4 {[%clk
00:23:53]} {[%emt 00:00:02]} Nxc3 {[%clk 00:19:35]} {[%emt 00:00:16]} 9. bxc3
{[%clk 00:24:01]} {[%emt 00:00:02]} Be7 {[%clk 00:19:19]} {[%emt 00:00:26]} 10.
Bf4 {[%clk 00:21:31]} {[%emt 00:02:38]} Nxd4 {[%clk 00:16:39]} {[%emt
00:02:52]} 11. cxd4 {[%clk 00:21:33]} {[%emt 00:00:08]} Bf6 {[%clk 00:15:18]}
{[%emt 00:01:31]} 12. c3 {[%clk 00:20:43]} {[%emt 00:00:59]} Bd7 {[%clk
00:14:11]} {[%emt 00:01:18]} 13. Bf3 {[%clk 00:20:00]} {[%emt 00:00:51]} Bc6
{[%clk 00:14:11]} {[%emt 00:00:11]} 14. Rb1 {[%clk 00:19:13]} {[%emt 00:00:55]}
Qd7 {[%clk 00:11:31]} {[%emt 00:02:52]} 15. Bxc6 {[%clk 00:18:08]} {[%emt
00:01:15]} Qxc6 {[%clk 00:07:41]} {[%emt 00:03:59]} 16. d5 {[%clk 00:18:13]}
{[%emt 00:00:05]} Qxd5 {[%clk 00:07:21]} {[%emt 00:00:31]} 17. Qxd5 {[%clk
00:18:08]} {[%emt 00:00:15]} exd5 {[%clk 00:07:30]} {[%emt 00:00:02]} 18. Rfe1+
{[%clk 00:18:09]} {[%emt 00:00:07]} Kf8 {[%clk 00:07:29]} {[%emt 00:00:12]} 19.
Bd6+ {[%clk 00:16:37]} {[%emt 00:01:42]} Kg8 {[%clk 00:07:38]} {[%emt
00:00:01]} 20. Rxb7 {[%clk 00:16:44]} {[%emt 00:00:03]} g5 {[%clk 00:06:15]}
{[%emt 00:01:33]} 21. Rd1 {[%clk 00:16:30]} {[%emt 00:00:23]} Rc8 {[%clk
00:03:35]} {[%emt 00:02:50]} 22. Bc7 {[%clk 00:15:27]} {[%emt 00:01:13]} Kg7
{[%clk 00:03:27]} {[%emt 00:00:18]} 23. Rxd5 {[%clk 00:15:14]} {[%emt
00:00:23]} Rhe8 {[%clk 00:03:29]} {[%emt 00:00:08]} 24. g3 {[%clk 00:15:19]}
{[%emt 00:00:04]} Re7 {[%clk 00:03:31]} {[%emt 00:00:08]} 25. Rc5 {[%clk
00:15:25]} {[%emt 00:00:04]} a6 {[%clk 00:02:03]} {[%emt 00:01:39]} 26. Ra7
{[%clk 00:15:06]} {[%emt 00:00:29]} h6 {[%clk 00:01:53]} {[%emt 00:00:20]} 27.
Kg2 {[%clk 00:14:59]} {[%emt 00:00:16]} Re6 {[%clk 00:01:15]} {[%emt 00:00:48]}
28. h3 {[%clk 00:14:28]} {[%emt 00:00:41]} Kg6 {[%clk 00:01:21]} {[%emt
00:00:05]} 29. a4 {[%clk 00:13:53]} {[%emt 00:00:45]} Bd8 {[%clk 00:00:41]}
{[%emt 00:00:50]} 30. Kf3 {[%clk 00:12:10]} {[%emt 00:01:53]} Be7 {[%clk
00:00:21]} {[%emt 00:00:30]} 31. Rc4 {[%clk 00:11:39]} {[%emt 00:00:41]} Bd6
{[%clk 00:00:14]} {[%emt 00:00:17]} 32. g4 {[%clk 00:11:38]} {[%emt 00:00:11]}
Rf6+ {[%clk 00:00:19]} {[%emt 00:00:05]} 33. Kg2 {[%clk 00:11:30]} {[%emt
00:00:17]} Bxc7 {[%clk 00:00:14]} {[%emt 00:00:16]} 34. Raxc7 {[%clk 00:11:37]}
{[%emt 00:00:03]} Rxc7 {[%clk 00:00:23]} 35. Rxc7 {[%clk 00:11:46]} {[%emt
00:00:02]} Rf4 {[%clk 00:00:27]} {[%emt 00:00:05]} 36. Rc6+ {[%clk 00:11:47]}
{[%emt 00:00:10]} f6 {[%clk 00:00:36]} 37. a5 {[%clk 00:10:36]} {[%emt
00:01:21]} Ra4 {[%clk 00:00:40]} {[%emt 00:00:06]} 38. Rxa6 {[%clk 00:08:34]}
{[%emt 00:02:13]} Rc4 {[%clk 00:00:49]} 39. Re6 {[%clk 00:08:42]} {[%emt
00:00:02]} Rxc3 {[%clk 00:00:57]} {[%emt 00:00:02]} 40. Re3 {[%clk 00:08:51]}
{[%emt 00:00:01]} Rc6 {[%clk 00:00:59]} {[%emt 00:00:08]} 41. Ra3 {[%clk
00:08:59]} {[%emt 00:00:03]} Ra6 {[%clk 00:01:08]} 42. Kf3 {[%clk 00:09:06]}
{[%emt 00:00:03]} Kf7 {[%clk 00:00:47]} {[%emt 00:00:31]} 43. Ke4 {[%clk
00:09:13]} {[%emt 00:00:02]} Ke6 {[%clk 00:00:56]} {[%emt 00:00:01]} 44. f3
{[%clk 00:08:17]} {[%emt 00:01:06]} f5+ {[%clk 00:00:15]} {[%emt 00:00:51]} 45.
gxf5+ {[%clk 00:08:25]} {[%emt 00:00:03]} Kf6 {[%clk 00:00:25]} {[%emt
00:00:01]} 46. f4 {[%clk 00:08:01]} {[%emt 00:00:32]} Ra8 {[%clk 00:00:18]}
{[%emt 00:00:18]} 47. fxg5+ {[%clk 00:07:46]} {[%emt 00:00:25]} hxg5 {[%clk
00:00:14]} {[%emt 00:00:13]} 48. a6 {[%clk 00:07:54]} {[%emt 00:00:02]} Re8+
{[%clk 00:00:20]} {[%emt 00:00:04]} 49. Kd5 {[%clk 00:07:45]} {[%emt 00:00:19]}
Kxf5 {[%clk 00:00:29]} {[%emt 00:00:02]} 50. a7 {[%clk 00:07:31]} {[%emt
00:00:23]} Ra8 {[%clk 00:00:38]} {[%emt 00:00:02]} 51. Kc6 {[%clk 00:07:38]}
{[%emt 00:00:02]} g4 {[%clk 00:00:16]} {[%emt 00:00:32]} 52. hxg4+ {[%clk
00:07:43]} {[%emt 00:00:05]} Kxg4 {[%clk 00:00:24]} {[%emt 00:00:02]} 53. Kb7
{[%clk 00:07:51]} {[%emt 00:00:02]} Rh8 {[%clk 00:00:16]} {[%emt 00:00:18]} 54.
a8=Q {[%clk 00:07:56]} {[%emt 00:00:05]} Rxa8 {[%clk 00:00:23]} {[%emt
00:00:04]} 55. Rxa8 {[%clk 00:08:04]} {[%emt 00:00:02]} 1-0